bitfinex-derivatives/quotes_ETHF0:USTF0_20260117
["timestamp","ask_amount","ask_price","bid_price","bid_amount"]
[1768639563361,0.86793808,3298.3,3297.1,0.56074118]
[1768639563560,1.698,3298.4,3297.1,0.56074118]
[1768639563862,0.86794205,3298.3,3297.1,0.56074118]
[1768639564057,1.698,3298.4,3297.1,0.56074118]
[1768639564257,0.86794204,3298.3,3297.1,0.56074118]
[1768639564458,1.698,3298.4,3297.1,0.56074118]
[1768639564658,0.86794968,3298.3,3297.1,0.56074118]
[1768639564862,1.698,3298.4,3297.1,0.56074118]
[1768639565060,0.86794967,3298.3,3297.1,0.56074118]
[1768639565260,1.698,3298.4,3297.1,0.56074118]
[1768639565462,0.86796597,3298.3,3297.1,0.56074118]
[1768639565765,0.70137349,3298.6,3297.1,0.56074118]
[1768639565952,2.56696598,3298.5,3297.1,0.56074118]
[1768639566157,0.86796598,3298.4,3297.1,0.56074118]
[1768639566457,0.86796598,3298.3,3297.1,0.56074118]
[1768639566658,1.699,3298.5,3297.1,0.56074118]
[1768639566853,0.86798783,3298.4,3297.1,0.56074118]
[1768639567057,0.86798783,3298.3,3297.1,0.56074118]
[1768639567257,1.699,3298.5,3297.1,0.56074118]
[1768639567466,0.86802537,3298.4,3297.1,0.56074118]
[1768639567762,0.86802537,3298.3,3297.1,0.56074118]
[1768639567967,1.699,3298.5,3297.1,0.56074118]
[1768639568169,0.86802538,3298.4,3297.1,0.56074118]
[1768639568367,0.86802538,3298.3,3297.1,0.56074118]
[1768639568575,1.699,3298.5,3297.1,0.56074118]
[1768639568769,0.86807138,3298.4,3297.1,0.56074118]
[1768639568969,0.86807138,3298.3,3297.1,0.56074118]
[1768639569171,1.699,3298.5,3297.1,0.56074118]
[1768639569369,0.8681151,3298.4,3297.1,0.56074118]
[1768639569571,0.8681151,3298.3,3297.1,0.56074118]
[1768639569869,1.699,3298.5,3297.1,0.56074118]
[1768639570069,0.86812691,3298.4,3297.1,0.56074118]
[1768639570270,0.86812691,3298.3,3297.1,0.56074118]
[1768639570465,1.699,3298.5,3297.1,0.56074118]
[1768639570672,0.86819399,3298.4,3297.1,0.56074118]
[1768639570874,0.86819399,3298.3,3297.1,0.56074118]
[1768639571065,1.699,3298.5,3297.1,0.56074118]
[1768639571270,0.86819401,3298.4,3297.1,0.56074118]
[1768639571479,0.86819401,3298.3,3297.1,0.56074118]
[1768639571678,0.86819401,3298.2,3297.1,0.56074118]
[1768639571881,1.699,3298.5,3297.1,0.56074118]
[1768639572180,0.86827646,3298.4,3297.1,0.56074118]
[1768639572482,0.86827646,3298.3,3297.1,0.56074118]
[1768639572683,0.86827646,3298.2,3297.1,0.56074118]
[1768639572882,1.699,3298.5,3297.1,0.56074118]
[1768639573079,0.86837863,3298.4,3297.1,0.56074118]
[1768639573277,0.86837863,3298.3,3297.1,0.56074118]
[1768639573481,0.86837863,3298.2,3297.1,0.56074118]
[1768639573678,1.699,3298.5,3297.1,0.56074118]
[1768639573978,0.86849305,3298.4,3297.1,0.56074118]
[1768639574174,0.86849305,3298.3,3297.1,0.56074118]
[1768639574370,0.86849305,3298.2,3297.1,0.56074118]
[1768639574571,0.86849305,3298.1,3297.1,0.56074118]
[1768639574773,1.699,3298.5,3297.1,0.56074118]
[1768639574981,0.86865119,3298.4,3297.1,0.56074118]
[1768639575182,0.86865119,3298.3,3297.1,0.56074118]
[1768639575484,0.86865119,3298.2,3297.1,0.56074118]
[1768639575678,0.86865119,3298.1,3297.1,0.56074118]
[1768639575879,1.699,3298.4,3297.1,0.56074118]
[1768639576080,0.86901285,3298.3,3297.1,0.56074118]
[1768639576278,0.86901285,3298.2,3297.1,0.56074118]
[1768639576577,0.86901285,3298.1,3297.1,0.56074118]
[1768639576778,1.699,3298.4,3297.1,0.56074118]
[1768639576980,0.86902293,3298.3,3297.1,0.56074118]
[1768639577179,0.86902293,3298.2,3297.1,0.56074118]
[1768639577379,0.86902293,3298.1,3297.1,0.56074118]
[1768639577581,1.699,3298.4,3297.1,0.56074118]
[1768639577779,0.86903623,3298.3,3297.1,0.56074118]
[1768639577979,0.86903623,3298.2,3297.1,0.56074118]
[1768639578181,0.86903623,3298.1,3297.1,0.56074118]
[1768639578385,1.699,3298.4,3297.1,0.56074118]
[1768639578586,0.86903767,3298.3,3297.1,0.56074118]
[1768639578785,0.86903767,3298.2,3297.1,0.56074118]
[1768639578986,0.86903767,3298.1,3297.1,0.56074118]
[1768639579185,1.699,3298.4,3297.1,0.56074118]
[1768639579486,0.86903866,3298.3,3297.1,0.56074118]
[1768639579689,0.86903866,3298.2,3297.1,0.56074118]
[1768639579884,0.86903866,3298.1,3297.1,0.56074118]
[1768639580085,1.699,3298.4,3297.1,0.56074118]
[1768639580285,0.86903959,3298.3,3297.1,0.56074118]
[1768639580486,0.86903959,3298.2,3297.1,0.56074118]
[1768639580784,0.86903959,3298.1,3297.1,0.56074118]
[1768639580984,1.699,3298.4,3297.1,0.56074118]
[1768639581186,0.86904079,3298.3,3297.1,0.56074118]
[1768639581485,0.86904079,3298.2,3297.1,0.56074118]
[1768639581684,1.699,3298.4,3297.1,0.56074118]
[1768639581881,0.86904257,3298.3,3297.1,0.56074118]
[1768639582082,0.86904257,3298.2,3297.1,0.56074118]
[1768639582285,2.40037349,3298.6,3297.2,0.98172816]
[1768639582587,0.86903833,3298.5,3297.2,0.98172816]
[1768639582783,0.86903833,3298.4,3297.2,0.98172816]
[1768639583082,0.86903833,3298.3,3297.2,0.98172816]
[1768639583288,2.40037349,3298.6,3297.2,0.98172816]
[1768639583482,0.86892466,3298.5,3297.2,0.98172816]
[1768639583686,0.86892466,3298.4,3297.2,0.98172816]
[1768639583893,0.86892466,3298.3,3297.2,0.98172816]
[1768639584095,2.40037349,3298.6,3297.2,0.98172816]
[1768639584391,0.86848444,3298.5,3297.2,0.98172816]
[1768639584591,0.86848444,3298.4,3297.2,0.98172816]
[1768639584783,0.86848444,3298.3,3297.2,0.98172816]
[1768639584984,2.40037349,3298.6,3297.2,0.98172816]
[1768639585187,0.86844937,3298.5,3297.2,0.98172816]
[1768639585387,0.86844937,3298.4,3297.2,0.98172816]
[1768639585591,0.86844937,3298.3,3297.2,0.98172816]
[1768639585781,2.40037349,3298.6,3297.2,0.98172816]
[1768639585982,0.8684227,3298.5,3297.2,0.98172816]
[1768639586184,0.8684227,3298.4,3297.2,0.98172816]
[1768639586493,0.8684227,3298.3,3297.2,0.98172816]
[1768639586694,2.24874349,3298.6,3297.2,0.98172816]
[1768639586893,0.86839813,3298.5,3297.2,0.98172816]
[1768639587094,0.86839813,3298.4,3297.2,0.98172816]
[1768639587285,0.86839813,3298.3,3297.2,0.98172816]
[1768639587483,2.24874349,3298.6,3297.2,0.98172816]
[1768639587691,0.86837824,3298.5,3297.2,0.98172816]
[1768639587891,2.24874349,3298.6,3297.2,0.98172816]
[1768639587892,0.86837824,3298.4,3297.2,0.98172816]
[1768639588092,0.86837824,3298.3,3297.2,0.98172816]
[1768639588294,2.24874349,3298.6,3297.2,0.98172816]
[1768639588493,0.86836092,3298.5,3297.2,0.98172816]
[1768639588694,0.86836092,3298.4,3297.2,0.98172816]
[1768639588894,0.86836092,3298.3,3297.2,0.98172816]
[1768639589193,2.24874349,3298.6,3297.2,0.98172816]
[1768639589393,0.86835838,3298.5,3297.2,0.98172816]
[1768639589594,0.86835838,3298.4,3297.2,0.98172816]
[1768639589794,0.86835838,3298.3,3297.2,0.98172816]
[1768639589996,2.24874349,3298.6,3297.2,0.98172816]
[1768639590197,0.86834219,3298.5,3297.2,0.98172816]
[1768639590397,0.86834219,3298.4,3297.2,0.98172816]
[1768639590598,2.24874349,3298.6,3297.2,0.98172816]
[1768639590599,0.86834219,3298.3,3297.2,0.98172816]
[1768639590897,2.24874349,3298.6,3297.2,0.98172816]
[1768639591097,0.86832924,3298.5,3297.2,0.98172816]
[1768639591291,0.86832924,3298.4,3297.2,0.98172816]
[1768639591492,0.86832924,3298.3,3297.2,0.98172816]
[1768639591792,2.24874349,3298.6,3297.2,0.98172816]
[1768639592000,0.86831704,3298.5,3297.2,0.98172816]
[1768639592299,0.86831704,3298.4,3297.2,0.98172816]
[1768639592598,2.24874349,3298.6,3297.2,0.98172816]
[1768639592599,0.86831704,3298.3,3297.2,0.98172816]
[1768639592799,2.24874349,3298.6,3297.2,0.98172816]
[1768639593001,0.86830873,3298.5,3297.2,0.98172816]
[1768639593200,0.86830873,3298.4,3297.2,0.98172816]
[1768639593401,0.86830873,3298.3,3297.2,0.98172816]
[1768639593604,2.24874349,3298.6,3297.2,0.98172816]
[1768639593801,0.86830204,3298.5,3297.2,0.98172816]
[1768639594001,0.86830204,3298.4,3297.2,0.98172816]
[1768639594201,0.86830204,3298.3,3297.2,0.98172816]
[1768639594403,2.24874349,3298.6,3297.2,0.98172816]
[1768639594595,0.8682955,3298.5,3297.2,0.98172816]
[1768639594794,0.8682955,3298.4,3297.2,0.98172816]
[1768639594994,0.8682955,3298.3,3297.2,0.98172816]
[1768639595201,2.24874349,3298.6,3297.2,0.98172816]
[1768639595397,0.86829091,3298.5,3297.2,0.98172816]
[1768639595597,0.86829091,3298.4,3297.2,0.98172816]
[1768639595796,0.86829091,3298.3,3297.2,0.98172816]
[1768639596000,0.54974349,3298.6,3297.2,0.98172816]
[1768639596204,0.86828973,3298.5,3297.2,1.57849461]
[1768639596411,0.86828973,3298.4,3297.2,1.57849461]
[1768639596595,0.86828973,3298.3,3297.2,1.57849461]
[1768639596796,0.54974349,3298.6,3297.2,1.57849461]
[1768639597095,0.86828318,3298.5,3297.2,1.57849461]
[1768639597292,0.86828318,3298.4,3297.2,1.57849461]
[1768639597496,0.86828318,3298.3,3297.2,1.57849461]
[1768639597795,0.54974349,3298.6,3297.2,1.57849461]
[1768639597997,0.8682789,3298.5,3297.2,1.57849461]
[1768639598201,0.8682789,3298.4,3297.2,1.57849461]
[1768639598397,0.8682789,3298.3,3297.2,1.57849461]
[1768639598608,0.54974349,3298.6,3297.2,1.57849461]
[1768639598903,0.86826615,3298.5,3297.2,1.57849461]
[1768639599107,0.86826615,3298.4,3297.2,1.57849461]
[1768639599292,0.86826615,3298.3,3297.2,1.57849461]
[1768639599496,0.54974349,3298.6,3297.2,1.57849461]
[1768639599697,0.86825838,3298.5,3297.2,1.57849461]
[1768639599897,0.86825838,3298.4,3297.2,1.57849461]
[1768639600093,0.54974349,3298.6,3297.2,1.57849461]
[1768639600303,0.86823903,3298.5,3297.2,1.57849461]
[1768639600605,0.86823903,3298.4,3297.2,1.57849461]
[1768639600795,0.54974349,3298.6,3297.2,1.57849461]
[1768639600991,0.86822006,3298.5,3297.2,1.57849461]
[1768639601204,0.86822006,3298.4,3297.2,1.57849461]
[1768639601399,0.54974349,3298.6,3297.2,1.57849461]
[1768639601601,0.86820641,3298.5,3297.2,1.57849461]
[1768639601799,0.86820641,3298.4,3297.2,1.57849461]
[1768639602000,0.54974349,3298.6,3297.2,1.57849461]
[1768639602298,0.86820641,3298.5,3297.2,1.57849461]
[1768639602498,0.86820641,3298.4,3297.2,1.57849461]
[1768639602698,0.54974349,3298.6,3297.2,1.57849461]
[1768639602898,0.86819685,3298.5,3297.2,1.57849461]
[1768639603099,0.86819685,3298.4,3297.2,1.57849461]
[1768639603309,0.54974349,3298.6,3297.2,1.57849461]
[1768639603494,0.86819113,3298.5,3297.2,1.57849461]
[1768639603699,0.86819113,3298.4,3297.2,1.57849461]
[1768639603908,0.54974349,3298.6,3297.2,1.57849461]
[1768639604106,0.86819156,3298.5,3297.2,1.57849461]
[1768639604301,0.86819156,3298.4,3297.2,1.57849461]
[1768639604609,0.54974349,3298.6,3297.2,0.59676645]
[1768639604911,0.86818959,3298.5,3297.2,0.59676645]
[1768639605211,0.86818959,3298.4,3297.2,0.59676645]
[1768639605398,0.54974349,3298.6,3297.2,0.59676645]
[1768639605595,0.86821417,3298.5,3297.2,0.59676645]
[1768639605805,0.86821417,3298.4,3297.2,0.59676645]
[1768639606005,0.54974349,3298.6,3297.2,0.59676645]
[1768639606303,0.86821416,3298.5,3297.2,0.59676645]
[1768639606606,0.86821416,3298.4,3297.2,0.59676645]
[1768639606809,0.86821416,3298.3,3297.2,0.59676645]
[1768639606995,0.54974349,3298.6,3297.2,0.59676645]
[1768639607200,0.86822704,3298.5,3297.2,0.59676645]
[1768639607399,0.86822704,3298.4,3297.2,0.59676645]
[1768639607600,0.86822704,3298.3,3297.2,0.59676645]
[1768639607801,0.54974349,3298.6,3297.2,0.59676645]
[1768639608100,0.86824316,3298.5,3297.2,0.59676645]
[1768639608302,0.86824316,3298.4,3297.2,0.59676645]
[1768639608503,0.86824316,3298.3,3297.2,0.59676645]
[1768639608706,0.54974349,3298.6,3297.2,0.59676645]
[1768639608905,0.86826309,3298.5,3297.2,0.59676645]
[1768639609106,0.86826309,3298.4,3297.2,0.59676645]
[1768639609309,0.86826309,3298.3,3297.2,0.59676645]
[1768639609609,0.54974349,3298.6,3297.2,0.59676645]
[1768639609807,0.86828691,3298.5,3297.2,0.59676645]
[1768639610008,0.86828691,3298.4,3297.2,0.59676645]
[1768639610218,0.86828691,3298.3,3297.2,0.59676645]
[1768639610511,0.54974349,3298.6,3297.2,0.59676645]
[1768639610710,0.86831817,3298.5,3297.2,0.59676645]
[1768639610914,0.86831817,3298.4,3297.2,0.59676645]
[1768639611114,0.86831817,3298.3,3297.2,0.59676645]
[1768639611314,0.54974349,3298.6,3297.2,0.59676645]
[1768639611618,0.86835543,3298.5,3297.2,0.59676645]
[1768639611807,0.86835543,3298.4,3297.2,0.59676645]
[1768639612006,0.86835543,3298.3,3297.2,0.59676645]
[1768639612207,0.54974349,3298.6,3297.2,0.59676645]
[1768639612411,0.86839244,3298.5,3297.0,0.98172816]
[1768639612616,0.86839244,3298.4,3297.0,0.98172816]
[1768639613318,0.86839244,3298.4,3297.3,0.98171596]
[1768639632742,0.86839244,3298.4,3297.4,0.98171596]
[1768639639444,0.86839244,3298.4,3296.8,0.59093138]
[1768639639644,0.86839244,3298.4,3297.4,0.98171596]
[1768639645250,0.86839244,3298.4,3296.8,0.59093138]
[1768639645450,0.86839244,3298.4,3297.4,0.98171596]
[1768639659670,0.86839244,3298.4,3297.3,0.98171596]
[1768639668772,0.86839244,3298.4,3297.5,0.98171596]
[1768639669377,0.86839244,3298.4,3297.1,0.63244222]
[1768639669573,0.86839244,3298.4,3297.4,0.98171596]
[1768639675374,0.86839244,3298.4,3297.1,0.63244222]
[1768639679474,0.86839244,3298.3,3297.1,0.63244222]
[1768639679771,1.698,3298.7,3297.1,0.63244222]
[1768639679973,1.12274987,3298.6,3297.1,0.63244222]
[1768639680173,1.12274987,3298.5,3297.1,0.63244222]
[1768639680374,0.87053036,3298.4,3297.1,0.63244222]
[1768639680668,0.87053036,3298.3,3297.1,0.63244222]
[1768639680874,1.698,3298.7,3297.1,0.63244222]
[1768639681074,1.12274811,3298.6,3297.1,0.63244222]
[1768639681273,1.12274811,3298.5,3297.1,0.63244222]
[1768639681473,1.698,3298.7,3297.1,0.63244222]
[1768639681474,0.87052899,3298.4,3297.1,0.63244222]
[1768639681674,1.698,3298.7,3297.1,0.63244222]
[1768639681878,1.1227293,3298.6,3297.1,0.63244222]
[1768639682182,1.1227293,3298.5,3297.1,0.63244222]
[1768639682481,0.87051441,3298.4,3297.1,0.63244222]
[1768639682682,0.87051441,3298.3,3297.1,0.63244222]
[1768639682879,2.30156641,3298.7,3297.1,0.63244222]
[1768639683080,1.12271428,3298.6,3297.1,0.63244222]
[1768639683269,1.12271428,3298.5,3297.1,0.63244222]
[1768639683476,0.87050276,3298.4,3297.1,0.63244222]
[1768639683776,0.87050276,3298.3,3297.1,0.63244222]
[1768639683979,2.30156641,3298.7,3297.1,0.63244222]
[1768639684179,1.12270348,3298.6,3297.1,0.63244222]
[1768639684381,1.12270348,3298.5,3297.1,0.63244222]
[1768639684577,0.87049436,3298.4,3297.1,0.63244222]
[1768639684778,0.87049436,3298.3,3297.1,0.63244222]
[1768639684979,2.30156641,3298.7,3297.1,0.63244222]
[1768639685177,1.12269331,3298.6,3297.1,0.63244222]
[1768639685377,1.12269331,3298.5,3297.1,0.63244222]
[1768639685584,0.87048647,3298.4,3297.1,0.63244222]
[1768639685783,0.87048647,3298.3,3297.1,0.63244222]
[1768639685977,0.60356641,3298.6,3297.1,0.63244222]
[1768639686177,1.122684,3298.5,3297.1,0.63244222]
[1768639686476,0.87047927,3298.4,3297.1,0.63244222]
[1768639686677,0.87047927,3298.3,3297.1,0.63244222]
[1768639686978,0.60356641,3298.6,3297.1,0.63244222]
[1768639687274,1.12267556,3298.5,3297.1,0.63244222]
[1768639687475,0.87047274,3298.4,3297.1,0.63244222]
[1768639687675,0.60356641,3298.6,3297.1,0.63244222]
[1768639687875,1.12266783,3298.5,3297.1,0.63244222]
[1768639688082,0.87046675,3298.4,3297.1,0.63244222]
[1768639688284,0.60356641,3298.6,3297.1,0.63244222]
[1768639688583,1.12266073,3298.5,3297.1,0.63244222]
[1768639688783,0.87046126,3298.4,3297.1,0.63244222]
[1768639688984,0.60356641,3298.6,3297.1,0.63244222]
[1768639689184,1.12266052,3298.5,3297.1,0.63244222]
[1768639689487,0.87046111,3298.4,3297.1,0.63244222]
[1768639689677,0.60356641,3298.6,3297.1,0.63244222]
[1768639689875,1.12265385,3298.5,3297.1,0.63244222]
[1768639690084,0.87045594,3298.4,3297.1,0.63244222]
[1768639690284,0.60356641,3298.6,3297.1,0.63244222]
[1768639690480,1.12265651,3298.5,3297.1,0.63244222]
[1768639690684,0.87045804,3298.4,3297.1,0.63244222]
[1768639690881,0.60356641,3298.6,3297.1,0.63244222]
[1768639691081,1.12265654,3298.5,3297.1,0.63244222]
[1768639691282,0.87045806,3298.4,3297.1,0.63244222]
[1768639691483,0.60356641,3298.6,3297.1,0.63244222]
[1768639691685,1.12266231,3298.5,3297.1,0.63244222]
[1768639691884,0.87046258,3298.4,3297.1,0.63244222]
[1768639692088,0.87046258,3298.3,3297.1,0.63244222]
[1768639692384,0.60356641,3298.6,3297.1,0.63244222]
[1768639692586,1.1226696,3298.5,3297.1,0.63244222]
[1768639692784,0.87046834,3298.4,3297.1,0.63244222]
[1768639692978,1.12267873,3298.3,3297.1,0.63244222]
[1768639693175,0.25221039,3298.2,3297.1,0.63244222]
[1768639693384,0.60356641,3298.6,3297.1,0.63244222]
[1768639693589,1.12271458,3298.5,3297.1,0.63244222]
[1768639693789,1.12271458,3298.4,3297.1,0.63244222]
[1768639693980,1.12271458,3298.3,3297.1,0.63244222]
[1768639694181,0.25221315,3298.2,3297.1,0.63244222]
[1768639694380,0.60356641,3298.6,3297.1,0.63244222]
[1768639694584,1.12272782,3298.5,3297.1,0.63244222]
[1768639694785,1.12272782,3298.4,3297.1,0.63244222]
[1768639694986,1.12272782,3298.3,3297.1,0.63244222]
[1768639695288,0.25221612,3298.2,3297.1,0.63244222]
[1768639695485,0.60356641,3298.6,3297.1,0.63244222]
[1768639695683,1.12274221,3298.5,3297.1,0.63244222]
[1768639695881,1.12274221,3298.4,3297.1,0.63244222]
[1768639696083,1.12274221,3298.3,3297.1,0.63244222]
[1768639696384,0.25221934,3298.2,3297.1,0.63244222]
[1768639696586,0.60356641,3298.6,3297.1,0.63244222]
[1768639696785,1.12274702,3298.5,3297.1,0.63244222]
[1768639696985,1.12274702,3298.4,3297.1,0.63244222]
[1768639697291,1.12274702,3298.3,3297.1,0.63244222]
[1768639697491,0.25222041,3298.2,3297.1,0.63244222]
[1768639697692,0.60356641,3298.6,3297.1,0.63244222]
[1768639697991,1.12275186,3298.5,3297.1,0.63244222]
[1768639698191,1.12275186,3298.4,3297.1,0.63244222]
[1768639698378,1.12275186,3298.3,3297.1,0.63244222]
[1768639698584,0.25222148,3298.2,3297.1,0.63244222]
[1768639698784,0.60356641,3298.6,3297.1,0.63244222]
[1768639699079,1.12275758,3298.5,3297.1,0.63244222]
[1768639699284,1.12275894,3298.4,3297.1,0.63244222]
[1768639699587,1.12275894,3298.3,3297.1,0.63244222]
[1768639699888,0.25222412,3298.2,3297.1,0.63244222]
[1768639700185,0.60356641,3298.6,3297.1,0.63244222]
[1768639700388,1.12276667,3298.5,3297.1,0.63244222]
[1768639700588,1.12276667,3298.4,3297.1,0.63244222]
[1768639700785,1.12276667,3298.3,3297.1,0.63244222]
[1768639700984,0.25222487,3298.2,3297.1,0.63244222]
[1768639701194,0.60356641,3298.6,3297.1,0.63244222]
[1768639701390,1.12276424,3298.5,3297.1,0.63244222]
[1768639701689,1.12276424,3298.4,3297.1,0.63244222]
[1768639701888,1.12276424,3298.3,3297.1,0.63244222]
[1768639702089,0.25222432,3298.2,3297.1,0.63244222]
[1768639702387,0.60356641,3298.6,3297.1,0.63244222]
[1768639702589,1.1227692,3298.5,3297.1,0.63244222]
[1768639702785,1.1227692,3298.4,3297.1,0.63244222]
[1768639702985,0.87054377,3298.3,3297.1,0.63244222]
[1768639703188,0.60356641,3298.6,3297.1,0.63244222]
[1768639703389,1.12276876,3298.5,3297.1,0.63244222]
[1768639703589,0.87054342,3298.4,3297.1,0.63244222]
[1768639703789,0.87054342,3298.3,3297.1,0.63244222]
[1768639703989,0.60356641,3298.6,3297.1,0.63244222]
[1768639704192,1.11936682,3298.5,3297.1,0.63244222]
[1768639704390,0.86714148,3298.4,3297.1,0.63244222]
[1768639704598,0.86714148,3298.3,3297.1,0.63244222]
[1768639704799,0.60356641,3298.6,3297.1,0.63244222]
[1768639704999,1.1193664,3298.5,3297.1,0.63244222]
[1768639705299,0.86714115,3298.4,3297.1,0.63244222]
[1768639705599,0.86714115,3298.3,3297.1,0.63244222]
[1768639705797,0.60356641,3298.6,3297.1,0.63244222]
[1768639706092,1.11936559,3298.5,3297.1,0.63244222]
[1768639706293,0.8671405,3298.4,3297.1,0.63244222]
[1768639706494,0.8671405,3298.3,3297.1,0.63244222]
[1768639706693,0.60356641,3298.6,3297.1,0.63244222]
[1768639706893,1.11936437,3298.5,3297.1,0.63244222]
[1768639707093,0.86713956,3298.4,3297.1,0.63244222]
[1768639707292,0.86713956,3298.3,3297.1,0.63244222]
[1768639707492,0.60356641,3298.6,3297.1,0.63244222]
[1768639707700,1.11936273,3298.5,3297.1,0.63244222]
[1768639708000,0.86713829,3298.4,3297.1,0.63244222]
[1768639708199,0.86713829,3298.3,3297.1,0.63244222]
[1768639708391,0.60356641,3298.6,3297.1,0.63244222]
[1768639708589,1.11936157,3298.5,3297.1,0.63244222]
[1768639708792,0.86713738,3298.4,3297.1,0.63244222]
[1768639709093,0.86713738,3298.3,3297.1,0.63244222]
[1768639709293,0.60356641,3298.6,3297.1,0.63244222]
[1768639709496,1.11936195,3298.5,3297.1,0.63244222]
[1768639709796,0.86713768,3298.4,3297.1,0.63244222]
[1768639709997,0.86713768,3298.3,3297.1,0.63244222]
[1768639710198,0.60356641,3298.6,3297.1,0.63244222]
[1768639710398,1.11936323,3298.5,3297.1,0.63244222]
[1768639710595,0.86713866,3298.4,3297.1,0.63244222]
[1768639710796,0.86713866,3298.3,3297.1,0.63244222]
[1768639711001,0.60356641,3298.6,3297.1,0.63244222]
[1768639711196,1.11936727,3298.5,3297.1,0.63244222]
[1768639711398,0.8671427,3298.4,3297.1,0.63244222]
[1768639711597,0.8671427,3298.3,3297.1,0.63244222]
[1768639711903,0.8671427,3298.2,3297.1,0.63244222]
[1768639712102,0.8671427,3298.1,3297.1,0.63244222]
[1768639712399,0.60356641,3298.6,3297.1,0.63244222]
[1768639712600,1.11937403,3298.5,3297.1,0.63244222]
[1768639712800,0.86714703,3298.4,3297.1,0.63244222]
[1768639713101,0.86714703,3298.3,3297.1,0.63244222]
[1768639713302,0.86714703,3298.2,3297.1,0.63244222]
[1768639713488,0.86714703,3298.1,3297.1,0.63244222]
[1768639713692,0.60356641,3298.6,3297.1,0.63244222]
[1768639713898,1.11937881,3298.5,3297.1,0.63244222]
[1768639714101,1.11937881,3298.4,3297.1,0.63244222]
[1768639714301,0.86715075,3298.3,3297.1,0.63244222]
[1768639714501,0.86715075,3298.2,3297.1,0.63244222]
[1768639714800,0.86715075,3298.1,3297.1,0.63244222]
[1768639715001,0.60356641,3298.6,3297.1,0.63244222]
[1768639715203,1.11938459,3298.5,3297.1,0.63244222]
[1768639715398,1.11938459,3298.4,3297.1,0.63244222]
[1768639715600,0.86715523,3298.3,3297.1,0.63244222]
[1768639715802,0.86715523,3298.2,3297.1,0.63244222]
[1768639715993,0.86715523,3298.1,3297.1,0.63244222]
[1768639716193,0.60356641,3298.6,3297.1,0.63244222]
[1768639716402,1.11939974,3298.5,3297.1,0.63244222]
[1768639716602,1.11939974,3298.4,3297.1,0.63244222]
[1768639716801,0.86716697,3298.3,3297.1,0.63244222]
[1768639716989,0.86716697,3298.2,3297.1,0.63244222]
[1768639717194,0.86716697,3298.1,3297.1,0.63244222]
[1768639717393,0.60356641,3298.6,3297.1,0.63244222]
[1768639717599,1.11940937,3298.5,3297.1,0.63244222]
[1768639717801,0.86717444,3298.4,3297.1,0.63244222]
[1768639718001,0.86717444,3298.3,3297.1,0.63244222]
[1768639718200,0.86717444,3298.2,3297.1,0.63244222]
[1768639718506,0.86717444,3298.1,3297.1,0.63244222]
[1768639718691,0.60356641,3298.6,3297.1,0.63244222]
[1768639718895,1.11942068,3298.5,3297.3,1.53552363]
[1768639719098,0.86718321,3298.4,3297.3,1.53552363]
[1768639719296,0.86718321,3298.3,3297.3,1.53552363]
[1768639719505,0.57592658,3298.9,3297.3,1.53552363]
[1768639719707,1.11960114,3298.8,3297.3,1.53552363]
[1768639720003,1.11960114,3298.7,3297.3,1.53552363]
[1768639720193,1.11960114,3298.6,3297.3,1.53552363]
[1768639720390,0.86698169,3298.5,3297.3,1.53552363]
[1768639720596,0.86698169,3298.4,3297.3,1.53552363]
[1768639720795,0.86698169,3298.3,3297.3,1.53552363]
[1768639720997,0.57592658,3298.9,3297.3,1.53552363]
[1768639721206,1.11949186,3298.8,3297.3,1.53552363]
[1768639721400,1.11949186,3298.7,3297.3,1.53552363]
[1768639721601,1.11949186,3298.6,3297.3,1.53552363]
[1768639721797,0.86689703,3298.5,3297.3,1.53552363]
[1768639722106,0.57592658,3298.9,3297.3,1.53552363]
[1768639722298,1.11934483,3298.8,3297.3,1.53552363]
[1768639722498,1.11934483,3298.7,3297.3,1.53552363]
[1768639722799,1.11934483,3298.6,3297.3,1.53552363]
[1768639723001,0.86678266,3298.5,3297.3,1.53552363]
[1768639723201,0.57592658,3298.9,3297.3,1.53552363]
[1768639723402,1.11929104,3298.8,3297.3,1.53552363]
[1768639723603,1.11929104,3298.7,3297.3,1.53552363]
[1768639723805,2.27392658,3298.9,3297.3,1.53552363]
[1768639723806,0.86674103,3298.6,3297.3,1.53552363]
[1768639724002,0.86674103,3298.5,3297.3,1.53552363]
[1768639724308,0.57233137,3298.8,3297.3,0.55390444]
[1768639724512,1.11924607,3298.7,3297.3,0.55390444]
[1768639724700,0.86670623,3298.6,3297.3,0.55390444]
[1768639724899,0.86670623,3298.5,3297.2,0.98161919]
[1768639725100,0.57233137,3298.6,3297.2,0.98161919]
[1768639725400,0.866684,3298.5,3297.2,0.98161919]
[1768639725601,0.57233137,3298.6,3297.2,0.98161919]
[1768639725801,0.86668416,3298.5,3297.2,0.98161919]
[1768639726010,0.57233137,3298.6,3297.2,0.98161919]
[1768639726203,0.86666463,3298.5,3297.2,0.98161919]
[1768639726497,0.57233137,3298.6,3297.2,0.98161919]
[1768639726702,0.86666463,3298.5,3297.2,0.98161919]
[1768639726901,0.57233137,3298.3,3297.0,0.72352076]
[1768639737419,0.57233137,3298.3,3297.1,0.98179227]
[1768639743438,0.57233137,3298.3,3297.3,0.98179227]
[1768639744336,3.57581488,3298.7,3297.3,0.98179227]
[1768639744538,1.11963985,3298.6,3297.3,0.98179227]
[1768639744838,1.11963985,3298.5,3297.3,0.98179227]
[1768639745037,1.11963985,3298.4,3297.3,0.98179227]
[1768639745240,0.25250418,3298.3,3297.3,0.98179227]
[1768639745433,3.57581488,3298.7,3297.3,0.98179227]
[1768639745640,1.11963376,3298.6,3297.3,0.98179227]
[1768639745836,1.11963376,3298.5,3297.3,0.98179227]
[1768639746138,1.11963376,3298.4,3297.3,0.98179227]
[1768639746331,0.25250279,3298.3,3297.3,0.98179227]
[1768639746533,0.15521521,3298.9,3297.4,0.5780038]
[1768639746732,2.817628,3298.8,3297.5,0.98179227]
[1768639746927,1.119628,3298.7,3297.5,0.98179227]
[1768639747138,1.119628,3298.6,3297.5,0.98179227]
[1768639747334,1.119628,3298.5,3297.5,0.98179227]
[1768639747534,0.25250154,3298.4,3297.5,0.98179227]
[1768639747739,1.698,3298.8,3297.5,0.98179227]
[1768639747941,1.11955194,3298.7,3297.5,0.98179227]
[1768639748140,1.11955194,3298.6,3297.5,0.98179227]
[1768639748336,1.11955194,3298.5,3297.5,0.98179227]
[1768639748638,0.25248032,3298.4,3297.5,0.98179227]
[1768639748935,1.698,3298.8,3297.5,0.98179227]
[1768639749135,1.11954999,3298.7,3297.5,0.98179227]
[1768639749338,1.11954999,3298.6,3297.5,0.98179227]
[1768639749535,1.11954999,3298.5,3297.5,0.98179227]
[1768639749736,0.25247988,3298.4,3297.5,0.98179227]
[1768639750035,1.698,3298.8,3297.5,0.98179227]
[1768639750235,1.11961766,3298.7,3297.5,0.98179227]
[1768639750540,1.11961766,3298.6,3297.5,0.98179227]
[1768639750733,1.11961766,3298.5,3297.5,0.98179227]
[1768639751034,0.25248911,3298.4,3297.5,0.98179227]
[1768639751341,1.698,3298.8,3297.5,0.98179227]
[1768639751534,1.11968097,3298.7,3297.5,0.98179227]
[1768639751727,1.11968097,3298.6,3297.5,0.98179227]